fUSD/lending_fUSD_20241230
["ID","MTS","AMOUNT","RATE_DAILY","PERIOD"]
[347181296,1735552267101,-500.0,0.00014246,2]
[347181297,1735552267110,-1347.16,0.00014246,2]
[347181298,1735552267120,-1216.85,0.00014246,2]
[347181299,1735552267129,-500.0,0.00014246,2]
[347181300,1735552267139,-500.0,0.00014246,2]
[347181301,1735552267148,-619.9,0.00014246,2]
[347181302,1735552267158,-500.0,0.00014246,2]
[347181303,1735552267168,-1313.29,0.00014246,2]
[347181304,1735552267178,-1488.82,0.00014246,2]
[347181305,1735552267187,-1248.52,0.00014246,2]
[347181306,1735552267197,-500.0,0.00014246,2]
[347181307,1735552267206,-500.0,0.00014246,2]
[347181308,1735552267216,-183.21662605,0.00014246,2]
[347181309,1735552267225,-500.0,0.00014246,2]
[347181310,1735552267235,-500.0,0.00014246,2]
[347181311,1735552267244,-500.0,0.00014246,2]
[347181312,1735552267254,-694.01,0.00014246,2]
[347181313,1735552267263,-500.0,0.00014246,2]
[347181314,1735552267272,-500.0,0.00014246,2]
[347181315,1735552267286,-7660.28,0.00014246,2]
[347181316,1735552267295,-2680.43,0.00014246,2]
[347181317,1735552267304,-424.829885,0.00014246,2]
[347181318,1735552267313,-1063.64,0.00014246,2]
[347181319,1735552267322,-500.0,0.00014246,2]
[347181320,1735552267331,-1021.08,0.00014246,2]
[347181321,1735552267341,-13659.08,0.00014246,2]
[347181322,1735552267349,-1770.28,0.00014246,2]
[347181323,1735552267359,-670.0,0.00014246,2]
[347181324,1735552267369,-2872.79,0.00014246,2]
[347181325,1735552267378,-500.0,0.00014246,2]
[347181326,1735552267387,-527.29,0.00014246,2]
[347181327,1735552267396,-3197.56,0.00014246,2]
[347181328,1735552267406,-500.0,0.00014246,2]
[347181329,1735552267415,-583.32,0.00014246,2]
[347181330,1735552267425,-404.940986,0.00014246,2]
[347181331,1735552267434,-422.403454,0.00014246,2]
[347181332,1735552267444,-1494.44,0.00014246,2]
[347181333,1735552267453,-815.7,0.00014246,2]
[347181334,1735552267462,-500.0,0.00014246,2]
[347181335,1735552267471,-7083.04,0.00014246,2]
[347181336,1735552267481,-1013.19,0.00014246,2]
[347181337,1735552267490,-500.0,0.00014246,2]
[347181338,1735552267499,-777.6,0.00014246,2]
[347181339,1735552267508,-1702.16,0.00014246,2]
[347181340,1735552267518,-422.403454,0.00014246,2]
[347181341,1735552267527,-2147.24,0.00014246,2]
[347181342,1735552267537,-1471.24,0.00014246,2]
[347181343,1735552267546,-2716.97,0.00014246,2]
[347181344,1735552267557,-465.16765048,0.00014246,2]
[347181345,1735552267567,-1570.61,0.00014246,2]
[347181346,1735552267577,-3844.89,0.00014246,2]
[347181347,1735552267587,-831.43,0.00014246,2]
[347181348,1735552267596,-500.0,0.00014246,2]
[347181349,1735552267606,-402.421159,0.00014246,2]
[347181350,1735552267616,-4981.24,0.00014246,2]
[347181351,1735552267626,-227.87004297,0.00014246,2]
[347181352,1735552267635,-2903.49,0.00014246,2]
[347181353,1735552267645,-853.14,0.00014246,2]
[347181354,1735552267654,-1690.41,0.00014246,2]
[347181355,1735552267664,-386.04148,0.00014246,2]
[347181356,1735552267673,-500.0,0.00014246,2]
[347181357,1735552267683,-500.0,0.00014246,2]
[347181358,1735552267692,-500.0,0.00014246,2]
[347181359,1735552267702,-2357.44,0.00014246,2]
[347181360,1735552267711,-1176.53,0.00014246,2]
[347181361,1735552267721,-819.39,0.00014246,2]
[347181362,1735552267730,-500.0,0.00014246,2]
[347181363,1735552267738,-508.53283754,0.00014246,2]
[347181364,1735552267748,-552.82,0.00014246,2]
[347181365,1735552267758,-399.82,0.00014246,2]
[347181366,1735552267767,-500.0,0.00014246,2]
[347181367,1735552267777,-1101.99,0.00014246,2]
[347181368,1735552267786,-1880.77,0.00014246,2]
[347181369,1735552267796,-18777.92,0.00014246,2]
[347181370,1735552267805,-500.0,0.00014246,2]
[347181371,1735552267815,-500.0,0.00014246,2]
[347181372,1735552267824,-500.0,0.00014246,2]
[347181373,1735552267834,-500.0,0.00014246,2]
[347181374,1735552267844,-8239.52,0.00014246,2]
[347181375,1735552267853,-1858.8,0.00014246,2]
[347181376,1735552267863,-797.54,0.00014246,2]
[347181377,1735552267873,-549.27877192,0.00014246,2]
[347181378,1735552267883,-516.36735537,0.00014246,2]
[347181379,1735552267893,-3991.74,0.00014246,2]
[347181380,1735552267904,-820.69,0.00014246,2]
[347181381,1735552267914,-898.75,0.00014246,2]
[347181382,1735552267924,-1412.45,0.00014246,2]
[347181383,1735552267934,-500.0,0.00014246,2]
[347181384,1735552267943,-628.952486,0.00014246,2]
[347181385,1735552267953,-837.46,0.00014246,2]
[347181386,1735552267963,-500.0,0.00014246,2]
[347181387,1735552267972,-6942.54,0.00014246,2]
[347181388,1735552267982,-500.0,0.00014246,2]
[347181389,1735552267991,-3611.85,0.00014246,2]
[347181390,1735552268001,-628.952486,0.00014246,2]
[347181391,1735552268010,-11862.16,0.00014246,2]
[347181392,1735552268020,-500.0,0.00014246,2]
[347181393,1735552268029,-1704.04,0.00014246,2]
[347181394,1735552268039,-2011.2,0.00014246,2]
[347181395,1735552268048,-1598.61,0.00014246,2]
[347181396,1735552268058,-500.0,0.00014246,2]
[347181397,1735552268067,-500.0,0.00014246,2]
[347181398,1735552268077,-500.0,0.00014246,2]
[347181399,1735552268086,-500.0,0.00014246,2]
[347181400,1735552268095,-2894.19,0.00014246,2]
[347181401,1735552268105,-387.055203,0.00014246,2]
[347181402,1735552268114,-500.0,0.00014246,2]
[347181403,1735552268124,-205.34892565,0.00014246,2]
[347181404,1735552268133,-908.23,0.00014246,2]
[347181405,1735552268143,-395.085733,0.00014246,2]
[347181406,1735552268152,-1841.21,0.00014246,2]
[347181407,1735552268163,-1287.85,0.00014246,2]
[347181408,1735552268173,-1600.24,0.00014246,2]
[347181409,1735552268182,-500.0,0.00014246,2]
[347181410,1735552268192,-500.0,0.00014246,2]
[347181411,1735552268201,-1763.26,0.00014246,2]
[347181412,1735552268211,-837.33,0.00014246,2]
[347181413,1735552268220,-502.28267493,0.00014246,2]
[347181414,1735552268230,-1651.88,0.00014246,2]
[347181415,1735552268239,-500.0,0.00014246,2]
[347181416,1735552268249,-500.0,0.00014246,2]
[347181417,1735552268258,-1820.87,0.00014246,2]
[347181418,1735552268267,-919.56,0.00014246,2]
[347181419,1735552268278,-500.0,0.00014246,2]
[347181420,1735552268289,-1283.04,0.00014246,2]
[347181421,1735552268299,-3306.36,0.00014246,2]
[347181422,1735552268308,-917.58,0.00014246,2]
[347181423,1735552268318,-3487.21,0.00014246,2]
[347181424,1735552268330,-2668.33,0.00014246,2]
[347181425,1735552268340,-500.0,0.00014246,2]
[347181426,1735552268350,-500.0,0.00014246,2]
[347181427,1735552268360,-386.833666,0.00014246,2]
[347181428,1735552268369,-500.0,0.00014246,2]
[347181429,1735552268378,-5058.68,0.00014246,2]
[347181430,1735552268388,-1232.56,0.00014246,2]
[347181431,1735552268397,-845.12,0.00014246,2]
[347181432,1735552268406,-151.924748,0.00014246,2]
[347181433,1735552268416,-8100.53,0.00014246,2]
[347181434,1735552268426,-401.622732,0.00014246,2]
[347181435,1735552268436,-500.0,0.00014246,2]
[347181436,1735552268447,-21668.75,0.00014246,2]
[347181437,1735552268456,-500.0,0.00014246,2]
[347181438,1735552268466,-522.16663701,0.00014246,2]
[347181439,1735552268475,-871.88,0.00014246,2]
[347181440,1735552268485,-1058.15,0.00014246,2]
[347181441,1735552268494,-188.59499,0.00014246,2]
[347181442,1735552268503,-1264.96,0.00014246,2]
[347181443,1735552268512,-1551.76,0.00014246,2]
[347181444,1735552268522,-3186.67,0.00014246,2]
[347181445,1735552268531,-188.59499,0.00014246,2]
[347181446,1735552268541,-2926.43,0.00014246,2]
[347181447,1735552268550,-2031.15,0.00014246,2]
[347181448,1735552268559,-500.0,0.00014246,2]
[347181449,1735552268569,-796.66,0.00014246,2]
[347181450,1735552268578,-500.0,0.00014246,2]
[347181451,1735552268587,-417.573932,0.00014246,2]
[347181452,1735552268597,-500.0,0.00014246,2]
[347181453,1735552268607,-1858.56,0.00014246,2]
[347181454,1735552268617,-500.0,0.00014246,2]
[347181455,1735552268626,-1755.63,0.00014246,2]
[347181456,1735552268635,-1000.28,0.00014246,2]
[347181457,1735552268645,-2561.84,0.00014246,2]
[347181458,1735552268656,-500.0,0.00014246,2]
[347181459,1735552268666,-1878.63,0.00014246,2]
[347181460,1735552268675,-1717.16,0.00014246,2]
[347181461,1735552268685,-500.0,0.00014246,2]
[347181462,1735552268695,-505.91289147,0.00014246,2]
[347181463,1735552268705,-430.655156,0.00014246,2]
[347181464,1735552268715,-3919.91,0.00014246,2]
[347181465,1735552268724,-5679.89,0.00014246,2]
[347181466,1735552268733,-2032.99,0.00014246,2]
[347181467,1735552268743,-3394.41,0.00014246,2]
[347181468,1735552268753,-500.0,0.00014246,2]
[347181469,1735552268762,-1874.92,0.00014246,2]
[347181470,1735552268772,-500.0,0.00014246,2]
[347181471,1735552268782,-2341.84,0.00014246,2]
[347181472,1735552268791,-3196.75,0.00014246,2]
[347181473,1735552268802,-500.0,0.00014246,2]
[347181474,1735552268811,-500.0,0.00014246,7]
[347181475,1735552268821,-2413.93,0.00014246,2]
[347181476,1735552268831,-500.0,0.00014246,2]
[347181477,1735552268840,-500.0,0.00014246,2]
[347181478,1735552268849,-1854.16,0.00014246,2]
[347181479,1735552268858,-845.35,0.00014246,2]
[347181480,1735552268868,-656.44,0.00014246,2]
[347181481,1735552268877,-751.7,0.00014246,2]
[347181482,1735552268886,-3234.98,0.00014246,2]
[347181483,1735552268898,-2307.43,0.00014246,2]
[347181484,1735552268909,-1417.15,0.00014246,2]
[347181485,1735552268918,-463.539499,0.00014246,2]
[347181486,1735552268927,-500.0,0.00014246,2]
[347181487,1735552268937,-1041.83,0.00014246,2]
[347181488,1735552268946,-1581.470257,0.00014246,2]
[347181489,1735552268955,-470.855587,0.00014246,2]
[347181490,1735552268965,-500.0,0.00014246,2]
[347181491,1735552268974,-500.0,0.00014246,2]
[347181492,1735552268983,-1154.95,0.00014246,2]
[347181493,1735552268992,-2409.94,0.00014246,2]
[347181494,1735552269002,-15022.22,0.00014246,2]
[347181495,1735552269011,-507.39760075,0.00014246,2]
[347181496,1735552269020,-4488.42,0.00014246,2]
[347181497,1735552269030,-1581.470257,0.00014246,2]
[347181498,1735552269039,-500.0,0.00014246,2]
[347181499,1735552269049,-500.0,0.00014246,2]
[347181500,1735552269058,-1854.12,0.00014246,2]
[347181501,1735552269067,-739.72,0.00014246,2]
[347181502,1735552269077,-16726.73,0.00014246,2]
[347181503,1735552269086,-1878.22,0.00014246,2]
[347181504,1735552269096,-500.0,0.00014246,2]
[347181505,1735552269105,-1609.46,0.00014246,2]
[347181506,1735552269115,-500.0,0.00014246,2]
[347181507,1735552269125,-2699.27,0.00014246,2]
[347181508,1735552269134,-1952.7,0.00014246,2]
[347181509,1735552269144,-4306.83,0.00014246,2]
[347181510,1735552269153,-498.562144,0.00014246,2]
[347181511,1735552269166,-498.439895,0.00014246,2]
[347181512,1735552269175,-1640.78,0.00014246,2]
[347181513,1735552269187,-3364.44,0.00014246,2]
[347181514,1735552269196,-790.37,0.00014246,2]
[347181515,1735552269206,-629.06,0.00014246,2]
[347181516,1735552269215,-500.0,0.00014246,2]
[347181517,1735552269225,-500.0,0.00014246,2]
[347181518,1735552269235,-2659.21,0.00014246,2]
[347181519,1735552269244,-4278.69,0.00014246,2]
[347181520,1735552269254,-500.0,0.00014246,2]
[347181521,1735552269263,-1400.23,0.00014246,2]
[347181522,1735552269273,-500.0,0.00014246,2]
[347181523,1735552269287,-558.98,0.00014246,2]
[347181524,1735552269297,-500.0,0.00014246,2]
[347181525,1735552269306,-511.82,0.00014246,2]
[347181526,1735552269315,-1539.27,0.00014246,2]
[347181527,1735552269325,-2419.98,0.00014246,2]
[347181528,1735552269334,-759.46,0.00014246,2]
[347181529,1735552269344,-1776.79,0.00014246,2]
[347181530,1735552269353,-500.0,0.00014246,2]
[347181531,1735552269362,-500.0,0.00014246,2]
[347181532,1735552269371,-910.57,0.00014246,2]
[347181533,1735552269381,-4974.89,0.00014246,2]
[347181534,1735552269391,-10777.63,0.00014246,2]
[347181535,1735552269400,-251.736571,0.00014246,2]
[347181536,1735552269411,-1011.0,0.00014246,2]
[347181537,1735552269421,-508.20979833,0.00014246,2]
[347181538,1735552269619,-1335.26,0.00014246,2]
[347181539,1735552269629,-504.50448776,0.00014246,2]
[347181540,1735552269639,-500.0,0.00014246,2]
[347181541,1735552269647,-582.35,0.00014246,2]
[347181542,1735552269658,-251.736571,0.00014246,2]
[347181543,1735552269667,-5289.05,0.00014246,2]
[347181544,1735552269676,-500.0,0.00014246,2]
[347181545,1735552269685,-500.0,0.00014246,2]
[347181546,1735552269695,-510.430197,0.00014246,2]
[347181547,1735552269703,-1288.01,0.00014246,2]
[347181548,1735552269713,-3774.66,0.00014246,2]
[347181549,1735552269722,-4346.03,0.00014246,2]
[347181550,1735552269731,-1826.7,0.00014246,2]
[347181551,1735552269740,-500.0,0.00014246,2]
[347181552,1735552269749,-500.0,0.00014246,2]
[347181553,1735552269758,-500.0,0.00014246,2]
[347181554,1735552269767,-4338.58,0.00014246,2]
[347181555,1735552269777,-502.80757774,0.00014246,2]
[347181556,1735552269786,-1887.47,0.00014246,2]
[347181557,1735552269795,-500.0,0.00014246,2]
[347181558,1735552269804,-502.763428,0.00014246,2]
[347181559,1735552269814,-500.0,0.00014246,2]
[347181560,1735552269823,-1107.7,0.00014246,2]
[347181561,1735552269832,-503.59509583,0.00014246,2]
[347181562,1735552269842,-2595.54,0.00014246,2]
[347181563,1735552269852,-556.81426425,0.00014246,2]
[347181564,1735552269861,-24751.29,0.00014246,2]
[347181565,1735552269870,-500.0,0.00014246,2]
[347181566,1735552269879,-500.0,0.00014246,2]
[347181567,1735552269889,-500.0,0.00014246,2]
[347181568,1735552269899,-500.0,0.00014246,2]
[347181569,1735552269909,-1839.39,0.00014246,2]
[347181570,1735552269918,-981.27,0.00014246,2]
[347181571,1735552269927,-500.0,0.00014246,2]
[347181572,1735552269936,-2012.43,0.00014246,2]
[347181573,1735552269946,-2441.89,0.00014246,2]
[347181574,1735552269955,-500.0,0.00014246,2]
[347181575,1735552269965,-500.0,0.00014246,2]
[347181576,1735552269974,-1897.79,0.00014246,2]
[347181577,1735552269983,-223.103362,0.00014246,2]
[347181578,1735552269992,-500.0,0.00014246,2]
[347181579,1735552270001,-555.86,0.00014246,2]
[347181580,1735552270011,-502.280573,0.00014246,2]
[347181581,1735552270021,-506.73617705,0.00014246,2]
[347181582,1735552270030,-500.0,0.00014246,2]
[347181583,1735552270039,-488.630338,0.00014246,2]
[347181584,1735552270048,-500.0,0.00014246,2]
[347181585,1735552270057,-500.0,0.00014246,2]
[347181586,1735552270067,-3005.23,0.00014246,2]
[347181587,1735552270076,-223.103362,0.00014246,2]
[347181588,1735552270085,-559.64,0.00014246,2]
[347181589,1735552270094,-500.0,0.00014246,2]
[347181590,1735552270104,-4166.47,0.00014246,2]
[347181591,1735552270113,-1998.93,0.00014246,2]
[347181592,1735552270122,-500.0,0.00014246,2]
[347181593,1735552270132,-500.0,0.00014246,2]
[347181594,1735552270141,-2269.54,0.00014246,2]
[347181595,1735552270150,-500.0,0.00014246,2]
[347181596,1735552270162,-4762.33,0.00014246,2]
[347181597,1735552270171,-2740.88,0.00014246,2]
[347181598,1735552270180,-2440.94,0.00014246,2]
[347181599,1735552270190,-1799.49,0.00014246,2]
[347181600,1735552270199,-517.17,0.00014246,2]
[347181601,1735552270208,-2860.3,0.00014246,2]
[347181602,1735552270218,-1852.02,0.00014246,2]
[347181603,1735552270227,-1288.76,0.00014246,2]
[347181604,1735552270237,-500.0,0.00014246,2]
[347181605,1735552270246,-500.0,0.00014246,2]
[347181606,1735552270258,-502.28629823,0.00014246,2]
[347181607,1735552270267,-500.0,0.00014246,2]
[347181608,1735552270277,-1285.75,0.00014246,2]
[347181609,1735552270290,-3532.63,0.00014246,2]
[347181610,1735552270299,-1494.07,0.00014246,2]
[347181611,1735552270309,-516.13,0.00014246,2]
[347181612,1735552270319,-482.638734,0.00014246,2]
[347181613,1735552270329,-465.520485,0.00014246,2]
[347181614,1735552270338,-3736.29,0.00014246,2]
[347181615,1735552270348,-2998.68,0.00014246,2]
[347181616,1735552270359,-1327.15,0.00014246,2]
[347181617,1735552270369,-1448.12,0.00014246,2]
[347181618,1735552270378,-1000.0,0.00014247,2]
[347181619,1735552270388,-1000.0,0.00014247,2]
[347181620,1735552270397,-383.88256019,0.00014247,2]
[347181621,1735552270407,-736.33899361,0.00014247,2]
[347181622,1735552270416,-1000.0,0.00014247,2]
[347181623,1735552270426,-1000.0,0.00014247,2]
[347181624,1735552270435,-687.64204651,0.00014247,2]
[347181625,1735552270445,-1000.0,0.00014247,2]
[347181626,1735552270455,-164.715487,0.00014265,2]
[347181627,1735552270464,-151.0,0.00014265,2]
[347181628,1735552270474,-151.0,0.00014265,2]
[347181629,1735552270483,-151.0,0.00014265,2]
[347181630,1735552270492,-1951.728841,0.00014265,2]
[347181631,1735552270501,-1951.728841,0.00014265,2]
[347181632,1735552270510,-151.0,0.00014265,2]
[347181633,1735552270520,-151.0,0.00014265,2]
[347181634,1735552270529,-3223.526328,0.00014265,2]
[347181635,1735552270538,-3223.526328,0.00014265,2]
[347181636,1735552270548,-1004.83,0.00014273,2]
[347181637,1735552270557,-529.78,0.00014274,14]
[347181638,1735552270567,-1078.71733626,0.00014297,5]
[347181639,1735552270576,-496212.57165868,0.000143,2]
[347181640,1735552270585,-1004.83,0.00014301,2]
[347181641,1735552270595,-1004.9335065,0.00014328,2]
[347181642,1735552270604,-436.69,0.00014351,2]
[347181643,1735552270614,-1985.27,0.00014351,2]
[347181644,1735552270623,-150.0,0.00014353,2]
[347181645,1735552270632,-637.0,0.00014369,2]
[347181646,1735552270641,-500.0,0.00014383,2]
[347181647,1735552270651,-200.0,0.00014383,2]
[347181648,1735552270661,-500.0,0.00014383,2]
[347181649,1735552270670,-500.0,0.00014383,2]
[347181650,1735552270680,-4306.08,0.00014384,2]
[347181651,1735552270689,-500.0,0.00014384,2]
[347181652,1735552270699,-500.0,0.00014384,2]
[347181653,1735552270708,-500.0,0.00014384,2]
[347181654,1735552270717,-500.0,0.00014384,2]
[347181655,1735552270726,-500.0,0.00014384,2]
[347181656,1735552270736,-500.0,0.00014384,2]
[347181657,1735552270745,-500.0,0.00014384,2]
[347181658,1735552270755,-200.0,0.00014384,2]
[347181659,1735552270764,-200.0,0.00014384,2]
[347181660,1735552270773,-9840.89917065,0.0001439,2]
[347181661,1735552270782,-150.0,0.00014394,2]
[347181662,1735552270792,-1288.909907,0.00014398,2]
[347181663,1735552270801,-1288.909907,0.00014398,2]
[347181664,1735552270810,-5800.0,0.000144,2]
[347181665,1735552270820,-276.635621,0.000144,2]
[347181666,1735552270829,-276.635621,0.000144,2]
[347181667,1735552270839,-311.175083,0.000144,2]
[347181668,1735552270848,-311.175083,0.000144,2]
[347181669,1735552270858,-151.0,0.000144,2]
[347181670,1735552270867,-151.0,0.000144,2]
[347181671,1735552270876,-151.0,0.000144,2]
[347181672,1735552270885,-581.0478353,0.000144,2]
[347181673,1735552270894,-456.0,0.0001441,2]
[347181674,1735552270904,-689.29,0.00014416,2]
[347181675,1735552270914,-150.0,0.00014446,2]
[347181676,1735552270924,-150.0,0.00014457,2]
[347181677,1735552270934,-1500.0,0.00014473,2]
[347181678,1735552270943,-42342.20707086,0.00014485,2]
[347181679,1735552270953,-688.64050949,0.0001449,2]
[347181680,1735552270963,-4948.0394462,0.0001449,2]
[347181681,1735552270972,-5105.2122199,0.0001449,2]
[347181682,1735552270981,-5262.3849937,0.0001449,2]
[347181683,1735552270991,-6198.5505095,0.00014496,2]
[347181684,1735552271000,-4467.2968551,0.00014496,2]
[347181685,1735552271010,-379.2579937,0.00014496,2]
[347181686,1735552271020,-666.0,0.00014499,2]
[347181687,1735552271029,-8876389.89681296,0.000145,4]
[347181688,1735552271856,-1165.9087451,0.000145,4]
[347181689,1735552271899,-1310.75524467,0.000145,4]
[347181690,1735552271912,-1262.37609622,0.000145,4]
[347181691,1735552271923,-5354.12112852,0.000145,4]
[347181692,1735552272708,-778.74913,0.000131,2]
[347181693,1735552272725,-500.0,0.00013698,2]
[347181694,1735552272741,-200.0,0.00013699,2]
[347181695,1735552272757,-80.80087,0.00013972,2]
[347181696,1735552272776,-419.19913,0.00013972,2]
[347181697,1735552272792,-151.0,0.00014093,2]
[347181698,1735552272812,-454.7685762,0.00014246,2]
[347181699,1735552272858,-45.2314238,0.00014246,2]
[347181700,1735552272873,-42440.85347287,0.000145,4]
[347181701,1735552272910,-5724130.6327813,0.000145,4]
[347181702,1735552272931,-3387.89748876,0.000145,4]
[347181703,1735552274371,-768.89942114,0.00012437,2]
[347181704,1735552274399,-23131.10057886,0.00012437,2]
[347181705,1735552274409,-645.37911799,0.00012999,2]
[347181706,1735552274419,-151.0,0.000131,2]
[347181707,1735552274429,-2122.0,0.00013666,2]
[347181708,1735552274438,-778.74913,0.00013972,2]
[347181709,1735552274448,-151.0,0.00013972,2]
[347181710,1735552274458,-778.74913,0.00014,2]
[347181711,1735552274467,-151.0,0.00014093,2]
[347181712,1735552274476,-1013969.2370789,0.000145,4]
[347181713,1735552274504,-37897.55775537,0.000145,4]
[347181714,1735552275337,-2174.3,0.000145,4]
[347181715,1735552275348,-636.24,0.000145,4]
[347181716,1735552275360,-874.63,0.000145,4]
[347181717,1735552275371,-528.04141444,0.000145,4]
[347181718,1735552275394,-500.0,0.00013698,2]
[347181719,1735552275404,-656.76820125,0.000145,4]
[347181720,1735552572425,670.92,0.00010834,2]
[347181721,1735552897112,1800.0,0.0002,120]
[347181724,1735553094782,253.32,0.00010137,2]
[347181725,1735553139138,-204.38739328,0.00012,2]
[347181726,1735553232140,-245.61260672,0.00012,2]
[347181727,1735553232163,-6526.246877,0.00012119,2]
[347181728,1735553234094,-519.03464084,0.00012119,2]
[347181729,1735553247094,-1889.03405089,0.00012119,2]
[347181730,1735553248093,-439.74814065,0.00012119,2]
[347181731,1735553250104,-3814.22420132,0.00012119,2]
[347181732,1735553250127,-691.15200728,0.00012219,2]
[347181746,1735553347113,-300.0,0.00012218,2]
[347181747,1735553347136,-190.0,0.00012219,2]
[347181748,1735553362106,-3421.79153873,0.00012219,2]
[347181759,1735553371098,-18758.70645399,0.00012219,2]
[347181760,1735553371120,-250.0,0.00012359,2]
[347181761,1735553371140,-400.0,0.00012374,2]
[347181762,1735553371163,-8887.35,0.00012412,2]
[347181763,1735553371185,-250.0,0.0001248,2]
[347181764,1735553371208,-1000.0,0.0001248,2]
[347181765,1735553371231,-814.03007839,0.00012483,2]
[347181777,1735553431925,-714.46,0.00012333,2]
[347181778,1735553431935,-239.40992161,0.00012483,2]
[347181780,1735553431946,-250.0,0.00012525,2]
[347181782,1735553431957,-223.67,0.00012586,2]
[347181783,1735553431966,-151.63,0.00012603,2]
[347181784,1735553431976,-601.49,0.00012732,2]
[347181785,1735553431985,-688.83,0.00012837,2]
[347181786,1735553431995,-150.0,0.00012866,2]
[347181787,1735553432005,-491.37,0.0001295,2]
[347181788,1735553432014,-493.87,0.0001295,2]
[347181789,1735553432024,-508.53,0.0001295,2]
[347181790,1735553432033,-490.75,0.0001295,2]
[347181791,1735553432043,-494.01,0.0001295,2]
[347181792,1735553432053,-505.49,0.0001295,2]
[347181793,1735553432063,-492.91,0.0001295,2]
[347181794,1735553432072,-507.23,0.0001295,2]
[347181795,1735553432081,-689.54162426,0.00013027,2]
[347181799,1735553432114,-220.45837574,0.00013027,2]
[347181800,1735553432123,-150.0,0.00013044,2]
[347181801,1735553432134,-150.0,0.00013044,2]
[347181802,1735553432143,-266.7716619,0.00013044,2]
[347181803,1735553432152,-150.0,0.00013044,2]
[347181804,1735553432161,-150.0,0.00013044,2]
[347181805,1735553432170,-150.0,0.00013044,2]
[347181806,1735553432179,-150.0,0.00013044,2]
[347181807,1735553432189,-150.0,0.00013044,2]
[347181808,1735553432201,-150.0,0.00013044,2]
[347181809,1735553432210,-150.0,0.00013086,2]
[347181810,1735553432219,-670.92,0.00013098,2]
[347181811,1735553432229,-151.0,0.000131,2]
[347181812,1735553432238,-158.136835,0.000131,2]
[347181813,1735553432247,-158.136835,0.000131,2]
[347181814,1735553432257,-151.0,0.000131,2]
[347181815,1735553432266,-151.0,0.000131,2]
[347181816,1735553432275,-151.0,0.000131,2]
[347181817,1735553432284,-152.215312,0.000131,2]
[347181818,1735553432294,-269.092989,0.000131,2]
[347181819,1735553432304,-269.092989,0.000131,2]
[347181820,1735553432315,-297.793383,0.000131,2]
[347181821,1735553432326,-297.793383,0.000131,2]
[347181822,1735553432336,-150.0,0.00013129,2]
[347181823,1735553432346,-150.0,0.00013172,2]
[347181824,1735553432358,-150.0,0.00013214,2]
[347181825,1735553432369,-150.0,0.00013257,2]
[347181826,1735553432379,-14101.93335681,0.00013271,2]
[347181827,1735553432389,-150.0,0.00013285,2]
[347181828,1735553432398,-150.0,0.000133,2]
[347181829,1735553432408,-150.0,0.00013342,2]
[347181830,1735553432418,-150.0,0.00013385,2]
[347181831,1735553432428,-150.0,0.00013427,2]
[347181832,1735553432440,-151.24,0.0001345,2]
[347181833,1735553432452,-152.79,0.0001345,2]
[347181834,1735553432461,-151.35,0.0001345,2]
[347181835,1735553432470,-152.6,0.0001345,2]
[347181836,1735553432481,-150.0,0.0001347,2]